[Event "NSV chessemy IM 2022"]
[Site "Braunschweig"]
[Date "2022.07.30"]
[Round "1.5"]
[White "Chennaoui, Yasin"]
[Black "Fischer, Daniel"]
[Result "0-1"]
[ECO "A09"]
[WhiteElo "2127"]
[BlackElo "2351"]
[Annotator "TA"]
[PlyCount "148"]
[EventDate "2022.07.30"]
[EventType "tourn"]
[EventCountry "GER"]
[SourceTitle "playchess.com"]
[Source "ChessBase"]
[SourceQuality "1"]
[TimeControl "40/5400+30:1800+30"]

{[%evp 12,147,6,-21,0,-10,-12,-31,-28,-38,-27,-48,-40,-50,-52,-60,-41,-32,-44,-79,-73,-86,-79,-82,-41,-42,-45,-77,-31,-45,-45,-50,-47,-49,-51,-45,-52,-43,-51,-50,-44,-493,-466,-500,-497,-492,-481,-522,-523,-518,-518,-516,-508,-514,-459,-486,-341,-516,-502,-600,-579,-533,-341,-341,-334,-324,-324,-310,-290,-651,-635,-677,-685,-670,-652,-637,-630,-593,-412,-615,-600,-705,-650,-1819,-1653,-1790,-1277,-5700,-5672,-5343,-4944,-2346,-2235,-6725,-6408,-29970,-29970,-29977,-29978,-29980,-29981,-29981,-29980,-29979,-29980,-29984,-29985,-29985,-29986,-29986,-29987,-29987,-29987,-29988,-29989,-29989,-29990,-29990,-29991,-29991,-29992,-29992,-29992,-29993,-29994,-29994,-29995,-29995,-29996,-29996,-29996,-29996,-29997,-29997,-29998,-29998,-29999,-29999]} 1. Nf3 {[%emt 0:00:04]} d5 {[%emt 0:00:06]} 2. c4 {[%emt 0:00:06]} d4 {[%emt 0:00:34]} 3. g3 {[%emt 0:00:10]} Nc6 {[%emt 0:00:55]} 4. Bg2 {[%emt 0:00:07]} e5 {[%emt 0:00:23]} 5. d3 {[%emt 0:00:06]} a5 {[%emt 0:00:43]} 6. O-O {[%emt 0:00:28]} Nf6 {[%emt 0:00:31]} 7. Na3 {[%emt 0:03:23]} Bc5 {[%emt 0:00:40] A09: Réti Opening: 1 Nf3 d5 2 c4.} (7... Bxa3 $5 8. bxa3 O-O $11) 8. Nc2 {[%emt 0:01:09]} O-O {[%emt 0:03:07]} 9. a3 {[%emt 0:06:06]} Re8 {[%emt 0:03:32] Black is slightly better.} 10. Rb1 {[%emt 0:04:19]} a4 {[%emt 0:03:32]} 11. Bd2 {[%emt 0:00:13] [#]} e4 $146 {[%emt 0:05:44]} ({Predecessor:} 11... Qd6 12. Ng5 h6 13. Ne4 Nxe4 14. dxe4 Be6 15. Ne1 Bxc4 16. Nd3 Bxd3 17. exd3 b5 {1-0 (46) Novikov,E (2276)-Kornyukov,A (2452) Chess.com INT 2021}) 12. dxe4 {[%emt 0:00:51]} Nxe4 {[%emt 0:00:06]} 13. Bb4 {[%emt 0:02:06]} Bb6 {[%emt 0:12:04]} 14. c5 {[%emt 0:05:09]} Nxc5 {[%emt 0:02:59] Threatens to win with ...Ne4.} 15. Ncxd4 {[%emt 0:03:36]} Nxb4 {[%emt 0:01:54]} 16. axb4 {[%emt 0:00:07]} Ne4 {[%emt 0:07:53]} 17. Ra1 {[%emt 0:09:20]} Bd7 {[%emt 0:02:08] Black is more active.} 18. e3 {[%emt 0:01:31]} Qe7 {[%emt 0:02:18]} 19. Nd2 {[%emt 0:00:20][%cal Bf3d2,Bd2b1,Bb1a3,Ba3c4][%mdl 32]} Nd6 {[%emt 0:13:43]} ({Better is} 19... Bxd4 $17 20. exd4 Nf6 21. Bxb7 Rad8) 20. Nb1 {[%emt 0:03:17]} Nc4 {[%emt 0:07:02][%csl LRb2,LRb4]} 21. Na3 {[%emt 0:11:59] [#]} Nxe3 {[%emt 0:14:05]} 22. fxe3 {[%emt 0:00:40]} Qxe3+ {[%emt 0:00:03]} 23. Kh1 {[%emt 0:00:08] Strongly threatening Nc4.} Qxd4 {[%emt 0:00:12]} ({Much less strong is} 23... Bxd4 24. Nc2 Qb3 25. Qxd4 $16 (25. Nxd4 Qxb4 26. Nc2 Qd6 $18)) 24. Qxd4 {[%emt 0:00:52]} Bxd4 {[%emt 0:00:02] This bishop pair is nice.} 25. Rad1 {[%emt 0:00:10]} Bxb2 {[%emt 0:00:10]} 26. Nc4 $2 {[%emt 0:00:21][%mdl 8192] Now White is beyond hope.} ({Only move:} 26. Rxd7 $15 Bxa3 27. Bxb7) 26... Bb5 $19 {[%emt 0:03:47]} 27. Nxb2 {[%emt 0:00:37]} Bxf1 {[%emt 0:00:03]} 28. Bxf1 {[%emt 0:42:26]} a3 {[%emt 0:00:11][%cal Ba4a3,Ba3a2][%mdl 32]} 29. Nc4 {[%emt 0:00:01]} a2 {[%emt 0:02:17]} 30. Ra1 {[%emt 0:00:27]} Re4 {[%emt 0:04:14]} 31. b5 {[%emt 0:01:26]} Rd4 {[%emt 0:02:59]} 32. Kg1 {[%emt 0:01:11]} g6 {[%emt 0:01:14]} 33. Kf2 {[%emt 0:00:11]} Ra4 {[%emt 0:00:43]} 34. b6 {[%emt 0:00:43]} (34. Ke1 $142) 34... cxb6 {[%emt 0:02:38] [#] aiming for ...b5.} ({Don't go for} 34... Raxc4 $2 35. Bxc4 Rxc4 36. bxc7 $19) 35. Nxb6 {[%emt 0:00:57]} Rab4 {[%emt 0:00:23] Hoping for ...Rd2+.} 36. Nc4 {[%emt 0:01:21] Inhibits Rd2+.} Rdxc4 {[%emt 0:00:55]} 37. Bxc4 {[%emt 0:00:09]} Rxc4 {[%emt 0:00:04]} 38. Rxa2 {[%emt 0:00:05][%mdl 4096] Endgame KR-KR} Rb4 {[%emt 0:02:29] Prevents Rb2.} 39. Kf3 {[%emt 0:00:15]} Kg7 {[%emt 0:00:22]} 40. h4 $2 {[%emt 0:01:36]} (40. Ke2) 40... h5 {[%emt 0:01:02]} 41. Ra3 {[%emt 0:30:16]} Kf6 {[%emt 0:03:50]} 42. Re3 {[%emt 0:00:00]} Kf5 {[%emt 0:01:52]} 43. Rd3 {[%emt 0:00:00]} Rb1 {[%emt 0:02:07]} 44. Rd5+ {[%emt 0:00:00]} Ke6 {[%emt 0:00:04]} 45. Rd8 {[%emt 0:00:00]} (45. Rd4 $142) 45... b5 {[%emt 0:02:32]} 46. Kf4 {[%emt 0:00:00]} b4 {[%emt 0:02:10]} 47. Re8+ {[%emt 0:00:00]} Kd5 {[%emt 0:00:57]} 48. Rd8+ {[%emt 0:00:00]} Kc4 {[%emt 0:00:39]} 49. Rc8+ {[%emt 0:00:00]} Kd3 {[%emt 0:02:59]} 50. Rd8+ {[%emt 0:00:00]} Kc3 {[%emt 0:00:04]} 51. Rc8+ {[%emt 0:00:00]} Kb2 {[%emt 0:00:13]} 52. Kg5 {[%emt 0:00:00]} Rf1 {[%emt 0:00:23] ( -> ...b3)} 53. g4 {[%emt 0:00:00]} Rg1 {[%emt 0:00:31] Black mates.} 54. Kf6 {[%emt 0:00:00]} Rxg4 {[%emt 0:00:05]} 55. Kxf7 {[%emt 0:00:00]} b3 {[%emt 0:00:12]} 56. Rc6 {[%emt 0:00:00]} Ka3 {[%emt 0:00:43]} 57. Ra6+ {[%emt 0:00:00]} Ra4 {[%emt 0:00:18]} 58. Rxg6 {[%emt 0:00:00]} Rxh4 {[%emt 0:00:27]} 59. Rg3 {[%emt 0:00:00]} Ka2 {[%emt 0:00:23]} 60. Kf6 {[%emt 0:00:00]} b2 {[%emt 0:00:20]} 61. Rg2 {[%emt 0:00:00]} Ka1 {[%emt 0:00:25]} 62. Kg5 {[%emt 0:00:00]} Rg4+ {[%emt 0:00:31]} 63. Rxg4 {[%emt 0:00:00]} hxg4 {[%emt 0:00:04] KP-KP} 64. Kf4 {[%emt 0:00:00]} b1=Q {[%emt 0:00:07]} 65. Kxg4 {[%emt 0:14:41]} Qf1 {[%emt 0:00:07]} 66. Kg5 {[%emt 0:00:00]} Kb2 {[%emt 0:00:06][%cal Ba1b2,Bb2c3,Bc3d4,Bd4e4,Be4f5,Bf5f6][%mdl 32]} 67. Kg4 {[%emt 0:00:00]} Kc3 {[%emt 0:00:04]} 68. Kg5 {[%emt 0:00:00]} Kd4 {[%emt 0:00:04]} 69. Kg4 {[%emt 0:00:00]} Ke4 {[%emt 0:00:10]} 70. Kg5 {[%emt 0:00:00]} Qf5+ {[%emt 0:00:05]} 71. Kh6 {[%emt 0:00:00]} Qg4 {[%emt 0:00:05]} 72. Kh7 {[%emt 0:00:00]} Kf5 {[%emt 0:00:04]} 73. Kh8 {[%emt 0:00:00]} Kf6 {[%emt 0:00:04][%csl Gf6][%cal Rg4g7]} 74. Kh7 {[%emt 0:00:00]} Qg7# {[%emt 0:01:33] Weighted Error Value: White=0.51/Black=0.15 (very precise)} 0-1

[Event "NSV chessemy IM 2022"]
[Site "Braunschweig"]
[Date "2022.07.31"]
[Round "2.1"]
[White "Brynell, Stellan"]
[Black "Fischer, Daniel"]
[Result "1/2-1/2"]
[ECO "D30"]
[WhiteElo "2387"]
[BlackElo "2351"]
[Annotator "RC"]
[PlyCount "47"]
[EventDate "2022.07.30"]
[EventType "tourn"]
[EventCountry "GER"]
[SourceTitle "playchess.com"]
[Source "ChessBase"]
[SourceQuality "1"]
[TimeControl "40/5400+30:1800+30"]

1. d4 {[%emt 0:00:06]} Nf6 {[%emt 0:00:05]} 2. Nf3 {[%emt 0:00:14]} d5 {[%emt 1:31:25]} 3. c4 {[%emt 0:00:07]} e6 {[%emt 0:00:00]} 4. Bg5 {[%emt 0:00:13]} dxc4 {[%emt 0:00:00]} 5. Qa4+ {[%emt 0:01:28]} c6 {[%emt 0:00:00]} 6. Qxc4 {[%emt 0:00:11]} b5 {[%emt 0:00:00]} 7. Qc2 {[%emt 0:00:43]} Bb7 {[%emt 0:00:00]} 8. e3 {[%emt 0:02:39]} Be7 {[%emt 0:00:00]} 9. Be2 {[%emt 0:04:06]} Nbd7 {[%emt 0:00:00]} 10. O-O {[%emt 0:00:40]} h6 {[%emt 0:00:00]} 11. Bh4 {[%emt 0:02:41]} O-O {[%emt 0:00:00]} 12. Nbd2 {[%emt 0:01:22]} Rc8 {[%emt 0:00:00]} 13. Nb3 {[%emt 0:06:15]} Qb6 {[%emt 0:00:00]} 14. Ne5 {[%emt 0:06:40]} g5 {[%emt 0:00:00]} 15. Nxd7 {[%emt 0:11:23]} Nxd7 {[%emt 0:00:00]} 16. Bg3 {[%emt 0:00:22]} c5 {[%emt 0:00:00]} 17. dxc5 {[%emt 0:11:51]} Nxc5 {[%emt 0:00:00]} 18. Rac1 {[%emt 0:00:10]} Be4 {[%emt 0:00:00]} 19. Qd2 {[%emt 0:00:27]} Nxb3 {[%emt 0:00:00]} 20. axb3 {[%emt 0:00:16]} Bf6 {[%emt 0:00:00]} 21. Rxc8 {[%emt 0:12:21]} Rxc8 {[%emt 0:00:00]} 22. Qd7 {[%emt 0:00:12]} Rd8 {[%emt 0:00:00]} 23. Qxb5 {[%emt 0:01:53]} Qxb5 {[%emt 0:00:00]} 24. Bxb5 {[%emt 0:00:07]} 1/2-1/2

[Event "NSV chessemy IM 2022"]
[Site "Braunschweig"]
[Date "2022.07.31"]
[Round "2.2"]
[White "Sumets, Andrey"]
[Black "Chennaoui, Yasin"]
[Result "1-0"]
[ECO "A54"]
[WhiteElo "2542"]
[BlackElo "2127"]
[Annotator "RC"]
[PlyCount "153"]
[EventDate "2022.07.30"]
[EventType "tourn"]
[EventCountry "GER"]
[SourceTitle "playchess.com"]
[Source "ChessBase"]
[SourceQuality "1"]
[TimeControl "40/5400+30:1800+30"]

1. d4 {[%emt 0:00:01]} Nf6 {[%emt 0:00:16]} 2. c4 {[%emt 0:00:21]} d6 {[%emt 0:02:04]} 3. Nf3 {[%emt 0:00:36]} Nbd7 {[%emt 0:02:03]} 4. Nc3 {[%emt 0:00:08]} e5 {[%emt 0:00:16]} 5. Bg5 {[%emt 0:01:48]} Be7 {[%emt 0:00:29]} 6. e3 {[%emt 0:00:06]} O-O {[%emt 0:00:23]} 7. Be2 {[%emt 0:01:24]} c6 {[%emt 0:01:46]} 8. O-O {[%emt 0:00:07]} a6 {[%emt 0:07:42]} 9. Qc2 {[%emt 0:00:12]} b5 {[%emt 0:00:26]} 10. Rfd1 {[%emt 0:06:56]} Qc7 {[%emt 0:13:19]} 11. Rac1 {[%emt 0:00:07]} b4 {[%emt 0:01:00]} 12. Ne4 {[%emt 0:02:10]} Re8 {[%emt 0:09:17]} 13. Nxf6+ {[%emt 0:23:14]} Bxf6 {[%emt 0:05:59]} 14. Bxf6 {[%emt 0:01:04]} Nxf6 {[%emt 0:00:13]} 15. c5 {[%emt 0:00:21]} e4 {[%emt 0:06:12]} 16. cxd6 {[%emt 0:00:24]} Qxd6 {[%emt 0:00:27]} 17. Ne5 {[%emt 0:00:10]} Be6 {[%emt 0:01:10]} 18. Qxc6 {[%emt 0:03:58]} Qxc6 {[%emt 0:00:52]} 19. Nxc6 {[%emt 0:01:19]} Bxa2 {[%emt 0:27:06]} 20. Nxb4 {[%emt 0:00:17]} Bb3 {[%emt 0:00:01]} 21. Re1 {[%emt 0:00:19]} a5 {[%emt 0:00:02]} 22. Nc6 {[%emt 0:00:10]} a4 {[%emt 0:02:01]} 23. Bb5 {[%emt 0:00:22]} a3 {[%emt 0:07:56]} 24. bxa3 {[%emt 0:01:18]} Rxa3 {[%emt 0:00:01]} 25. Ne7+ {[%emt 0:09:09]} Rxe7 {[%emt 0:00:48]} 26. Rc8+ {[%emt 0:00:03]} Ne8 {[%emt 0:00:02]} 27. Bxe8 {[%emt 0:00:12]} g6 {[%emt 0:01:59]} 28. d5 {[%emt 0:07:14]} Rea7 {[%emt 0:01:56]} 29. d6 {[%emt 0:00:55]} Be6 {[%emt 0:01:15]} 30. d7 {[%emt 0:05:34]} Ra1 {[%emt 0:00:09]} 31. Kf1 {[%emt 0:00:04]} Ra8 {[%emt 0:00:09]} 32. Rxa1 {[%emt 0:01:29]} Rxa1+ {[%emt 0:00:10]} 33. Ke2 {[%emt 0:00:03]} Ra2+ {[%emt 0:01:14]} 34. Ke1 {[%emt 0:01:36]} Ra1+ {[%emt 0:00:04]} 35. Kd2 {[%emt 0:00:11]} Ra2+ {[%emt 0:00:04]} 36. Kc1 {[%emt 0:00:18]} Bxd7 {[%emt 0:09:08]} 37. Bxd7+ {[%emt 0:00:14]} Kg7 {[%emt 0:00:00]} 38. Rc2 {[%emt 0:00:28]} Ra1+ {[%emt 0:00:01]} 39. Kb2 {[%emt 0:00:28]} Rh1 {[%emt 0:00:52]} 40. h3 {[%emt 0:00:20]} Rg1 {[%emt 0:01:00]} 41. g3 {[%emt 0:30:14]} f5 {[%emt 0:02:53]} 42. g4 {[%emt 0:00:00]} fxg4 {[%emt 0:01:44]} 43. Bxg4 {[%emt 0:00:00]} h5 {[%emt 0:00:40]} 44. Bc8 {[%emt 0:00:00]} g5 {[%emt 0:02:40]} 45. Kc3 {[%emt 0:00:00]} g4 {[%emt 0:00:07]} 46. hxg4 {[%emt 0:00:00]} hxg4 {[%emt 0:00:04]} 47. Bf5 {[%emt 0:00:00]} g3 {[%emt 0:00:11]} 48. fxg3 {[%emt 0:00:00]} Rxg3 {[%emt 0:00:05]} 49. Kd4 {[%emt 0:00:00]} Kf6 {[%emt 0:00:12]} 50. Bxe4 {[%emt 0:00:00]} Rg1 {[%emt 0:00:19]} 51. Rc6+ {[%emt 0:00:00]} Ke7 {[%emt 0:00:06]} 52. Bd5 {[%emt 0:00:00]} Kd7 {[%emt 0:00:32]} 53. Rh6 {[%emt 0:00:00]} Ke7 {[%emt 0:00:30]} 54. e4 {[%emt 0:00:00]} Rg4 {[%emt 0:00:38]} 55. Re6+ {[%emt 0:00:00]} Kd7 {[%emt 0:00:21]} 56. Rf6 {[%emt 0:00:00]} Ke7 {[%emt 0:00:46]} 57. Ke5 {[%emt 0:00:00]} Rg5+ {[%emt 0:00:06]} 58. Rf5 {[%emt 0:00:00]} Rg7 {[%emt 0:00:05]} 59. Rf7+ {[%emt 0:00:00]} Rxf7 {[%emt 0:00:06]} 60. Bxf7 {[%emt 0:00:00]} Kxf7 {[%emt 0:00:07]} 61. Kd6 {[%emt 0:00:00]} Ke8 {[%emt 0:00:10]} 62. Ke6 {[%emt 0:00:00]} Kd8 {[%emt 0:00:06]} 63. Kf7 {[%emt 0:00:00]} Kd7 {[%emt 0:00:04]} 64. e5 {[%emt 0:00:00]} Kd8 {[%emt 0:00:05]} 65. e6 {[%emt 0:00:00]} Kc7 {[%emt 0:00:06]} 66. e7 {[%emt 0:00:00]} Kd7 {[%emt 0:00:02]} 67. e8=Q+ {[%emt 0:00:00]} Kd6 {[%emt 0:00:04]} 68. Qe4 {[%emt 0:00:00]} Kc5 {[%emt 0:00:04]} 69. Qd3 {[%emt 0:00:00]} Kc6 {[%emt 0:00:06]} 70. Qd4 {[%emt 0:00:00]} Kc7 {[%emt 0:00:07]} 71. Ke6 {[%emt 0:00:00]} Kc6 {[%emt 0:00:05]} 72. Qc4+ {[%emt 0:00:00]} Kb6 {[%emt 0:00:07]} 73. Kd6 {[%emt 0:00:00]} Kb7 {[%emt 0:00:07]} 74. Qb5+ {[%emt 0:00:00]} Kc8 {[%emt 0:00:08]} 75. Qd7+ {[%emt 0:00:00]} Kb8 {[%emt 0:00:04]} 76. Kc6 {[%emt 0:00:00]} Ka8 {[%emt 0:00:08]} 77. Qb7# {[%emt 0:00:00]} 1-0

[Event "NSV chessemy IM 2022"]
[Site "Braunschweig"]
[Date "2022.07.31"]
[Round "2.3"]
[White "Sriram, Jha"]
[Black "Voege, Tobias"]
[Result "1/2-1/2"]
[ECO "E11"]
[WhiteElo "2361"]
[BlackElo "2272"]
[Annotator "RC"]
[PlyCount "81"]
[EventDate "2022.07.30"]
[EventType "tourn"]
[EventCountry "GER"]
[SourceTitle "playchess.com"]
[Source "ChessBase"]
[SourceQuality "1"]
[TimeControl "40/5400+30:1800+30"]

1. d4 {[%emt 0:00:17]} e6 {[%emt 0:00:09]} 2. c4 {[%emt 0:02:58]} Bb4+ {[%emt 0:00:08]} 3. Bd2 {[%emt 0:00:11]} a5 {[%emt 0:00:04]} 4. Nf3 {[%emt 0:00:41]} d5 {[%emt 0:01:07]} 5. Qc2 {[%emt 0:04:28]} Nf6 {[%emt 0:06:41]} 6. g3 {[%emt 0:03:55]} dxc4 {[%emt 0:10:39]} 7. Qxc4 {[%emt 0:01:32]} Nc6 {[%emt 0:05:09]} 8. Nc3 {[%emt 0:14:43]} O-O {[%emt 0:04:48]} 9. Bg2 {[%emt 0:00:41]} Re8 {[%emt 0:03:13]} 10. O-O {[%emt 0:07:08]} e5 {[%emt 0:14:18]} 11. dxe5 {[%emt 0:13:44]} Nxe5 {[%emt 0:08:19]} 12. Nxe5 {[%emt 0:00:21]} Rxe5 {[%emt 0:00:07]} 13. Bf4 {[%emt 0:03:07]} Rc5 {[%emt 0:05:09]} 14. Qb3 {[%emt 0:05:29]} Be6 {[%emt 0:02:27]} 15. Qc2 {[%emt 0:02:33]} c6 {[%emt 0:02:22]} 16. Rfd1 {[%emt 0:02:00]} Qe8 {[%emt 0:00:38]} 17. e4 {[%emt 0:02:53]} Bxc3 {[%emt 0:12:24]} 18. bxc3 {[%emt 0:00:05]} b5 {[%emt 0:00:16]} 19. Bd6 {[%emt 0:07:09]} Rc4 {[%emt 0:01:30]} 20. Rd4 {[%emt 0:00:05]} Nd7 {[%emt 0:03:06]} 21. Bf1 {[%emt 0:05:20]} Rxd4 {[%emt 0:00:22]} 22. cxd4 {[%emt 0:00:01]} Nb6 {[%emt 0:00:29]} 23. Bc5 {[%emt 0:06:20]} Nc4 {[%emt 0:08:44]} 24. a4 {[%emt 0:00:24]} f5 {[%emt 0:01:15]} 25. axb5 {[%emt 0:04:17]} cxb5 {[%emt 0:00:24]} 26. d5 {[%emt 0:02:29]} Bf7 {[%emt 0:00:56]} 27. Bxc4 {[%emt 0:00:36]} bxc4 {[%emt 0:00:04]} 28. Qxc4 {[%emt 0:01:38]} fxe4 {[%emt 0:02:35]} 29. Qd4 {[%emt 0:00:43]} Qd7 {[%emt 0:03:35]} 30. d6 {[%emt 0:00:15]} e3 {[%emt 0:01:03]} 31. Qxe3 {[%emt 0:00:46]} Bd5 {[%emt 0:00:47]} 32. Qg5 {[%emt 0:01:46]} Bc6 {[%emt 0:01:09]} 33. Bd4 {[%emt 0:00:05]} h6 {[%emt 0:00:40]} 34. Qe7 {[%emt 0:02:56]} Qxe7 {[%emt 0:01:29]} 35. dxe7 {[%emt 0:00:02]} Kf7 {[%emt 0:00:26]} 36. Rc1 {[%emt 0:02:31]} Be8 {[%emt 0:00:34]} 37. Bc5 {[%emt 0:00:22]} Rc8 {[%emt 0:00:38]} 38. Rc3 {[%emt 0:00:24]} Kg6 {[%emt 0:00:49]} 39. Bb4 {[%emt 0:04:01]} Rxc3 {[%emt 0:00:14]} 40. Bxc3 {[%emt 0:00:02]} Kf7 {[%emt 0:00:20]} 41. Bxa5 {[%emt 0:08:21]} 1/2-1/2

[Event "NSV chessemy IM 2022"]
[Site "Braunschweig"]
[Date "2022.07.31"]
[Round "2.4"]
[White "Pubantz, Jan"]
[Black "von Mettenheim, Johannes"]
[Result "0-1"]
[ECO "E36"]
[WhiteElo "2269"]
[BlackElo "2253"]
[Annotator "RC"]
[PlyCount "118"]
[EventDate "2022.07.30"]
[EventType "tourn"]
[EventCountry "GER"]
[SourceTitle "playchess.com"]
[Source "ChessBase"]
[SourceQuality "1"]
[TimeControl "40/5400+30:1800+30"]

1. d4 {[%emt 0:00:02]} Nf6 {[%emt 0:00:06]} 2. c4 {[%emt 0:00:03]} e6 {[%emt 0:00:05]} 3. Nc3 {[%emt 0:00:19]} Bb4 {[%emt 0:00:16]} 4. Qc2 {[%emt 0:00:07]} d5 {[%emt 0:00:15]} 5. a3 {[%emt 0:00:11]} Bxc3+ {[%emt 0:00:08]} 6. Qxc3 {[%emt 0:00:04]} O-O {[%emt 0:00:26]} 7. Nf3 {[%emt 0:01:51]} dxc4 {[%emt 0:00:52]} 8. Qxc4 {[%emt 0:00:28]} b6 {[%emt 0:02:33]} 9. h4 {[%emt 0:00:19]} Ba6 {[%emt 0:00:24]} 10. Qc2 {[%emt 0:00:12]} c5 {[%emt 0:02:56]} 11. dxc5 {[%emt 0:01:17]} Nbd7 {[%emt 0:00:44]} 12. c6 {[%emt 0:02:18]} Rc8 {[%emt 0:00:13]} 13. b4 {[%emt 0:00:55]} Nb8 {[%emt 0:08:30]} 14. Qb2 {[%emt 0:01:04]} Qd5 {[%emt 0:18:15]} 15. a4 {[%emt 0:29:29]} Nxc6 {[%emt 0:24:50]} 16. Bg5 {[%emt 0:33:20]} Qe4 {[%emt 0:04:54]} 17. Bd2 {[%emt 0:05:50]} Nd5 {[%emt 0:09:00]} 18. Qb1 {[%emt 0:07:09]} Qxb1+ {[%emt 0:01:00]} 19. Rxb1 {[%emt 0:00:03]} Nce7 {[%emt 0:00:52]} 20. e3 {[%emt 0:11:30]} Bxf1 {[%emt 0:00:48]} 21. Rxf1 {[%emt 0:00:03]} Nc3 {[%emt 0:12:30]} 22. Bxc3 {[%emt 0:00:34]} Rxc3 {[%emt 0:00:07]} 23. Kd2 {[%emt 0:00:19]} Rfc8 {[%emt 0:06:33]} 24. Rfc1 {[%emt 0:00:55]} Nd5 {[%emt 0:01:10]} 25. b5 {[%emt 0:00:56]} Rxc1 {[%emt 0:01:48]} 26. Rxc1 {[%emt 0:00:01]} Rxc1 {[%emt 0:00:07]} 27. Kxc1 {[%emt 0:00:01]} Nc3 {[%emt 0:00:26]} 28. Nd4 {[%emt 0:00:42]} Nxa4 {[%emt 0:00:30]} 29. Nc6 {[%emt 0:00:02]} Kf8 {[%emt 0:00:33]} 30. Kc2 {[%emt 0:01:56]} Ke8 {[%emt 0:00:58]} 31. f3 {[%emt 0:01:48]} Kd7 {[%emt 0:00:58]} 32. Nxa7 {[%emt 0:00:34]} Kd6 {[%emt 0:01:12]} 33. Kb3 {[%emt 0:00:14]} Nc5+ {[%emt 0:00:08]} 34. Kc4 {[%emt 0:00:09]} Nd7 {[%emt 0:00:38]} 35. Kd4 {[%emt 0:01:20]} Nb8 {[%emt 0:00:49]} 36. Nc8+ {[%emt 0:01:48]} Kc7 {[%emt 0:00:07]} 37. Ne7 {[%emt 0:00:20]} Kd8 {[%emt 0:01:22]} 38. Ng8 {[%emt 0:00:28]} Nd7 {[%emt 0:00:11]} 39. h5 {[%emt 0:00:43]} Ke8 {[%emt 0:00:39]} 40. h6 {[%emt 0:00:04]} Kf8 {[%emt 0:00:22]} 41. Ne7 {[%emt 0:30:04]} Kxe7 {[%emt 0:30:09]} 42. hxg7 {[%emt 0:00:02]} Nf6 {[%emt 0:00:17]} 43. e4 {[%emt 0:00:00]} Ng8 {[%emt 0:00:00]} 44. f4 {[%emt 0:00:00]} f6 {[%emt 0:00:00]} 45. e5 {[%emt 0:00:00]} f5 {[%emt 0:00:00]} 46. Ke3 {[%emt 0:00:00]} Kf7 {[%emt 0:00:00]} 47. Kf3 {[%emt 0:00:00]} Nh6 {[%emt 0:00:00]} 48. Kg3 {[%emt 0:00:00]} Kxg7 {[%emt 0:00:00]} 49. Kh4 {[%emt 0:00:00]} Kg6 {[%emt 0:00:00]} 50. g3 {[%emt 0:00:00]} Ng4 {[%emt 0:00:00]} 51. Kh3 {[%emt 0:00:00]} Nf2+ {[%emt 0:00:00]} 52. Kh4 {[%emt 0:00:00]} h5 {[%emt 0:00:00]} 53. g4 {[%emt 0:00:00]} hxg4 {[%emt 0:00:00]} 54. Kg3 {[%emt 0:00:00]} Ne4+ {[%emt 0:00:00]} 55. Kh4 {[%emt 0:00:00]} Nc3 {[%emt 0:00:00]} 56. Kg3 {[%emt 0:00:00]} Nxb5 {[%emt 0:00:00]} 57. Kh4 {[%emt 0:00:00]} Nc7 {[%emt 0:00:00]} 58. Kg3 {[%emt 0:00:00]} b5 {[%emt 0:00:00]} 59. Kh4 {[%emt 0:00:00]} b4 {[%emt 0:00:00]} 0-1

[Event "NSV chessemy IM 2022"]
[Site "Braunschweig"]
[Date "2022.07.31"]
[Round "2.5"]
[White "Knuedel, Torben"]
[Black "Colbow, Collin"]
[Result "0-1"]
[ECO "B45"]
[WhiteElo "2210"]
[BlackElo "2325"]
[Annotator "RC"]
[PlyCount "72"]
[EventDate "2022.07.30"]
[EventType "tourn"]
[EventCountry "GER"]
[SourceTitle "playchess.com"]
[Source "ChessBase"]
[SourceQuality "1"]
[TimeControl "40/5400+30:1800+30"]

1. e4 {[%emt 0:00:02]} c5 {[%emt 0:00:05]} 2. Nf3 {[%emt 0:00:03]} e6 {[%emt 0:00:05]} 3. d4 {[%emt 0:00:33]} cxd4 {[%emt 0:00:04]} 4. Nxd4 {[%emt 0:00:05]} Nc6 {[%emt 0:00:04]} 5. Nc3 {[%emt 0:00:37]} Nf6 {[%emt 0:00:07]} 6. Ndb5 {[%emt 0:01:46]} Bb4 {[%emt 0:00:07]} 7. a3 {[%emt 0:02:14]} Bxc3+ {[%emt 0:00:10]} 8. Nxc3 {[%emt 0:00:07]} d5 {[%emt 0:00:05]} 9. Bd3 {[%emt 0:06:21]} dxe4 {[%emt 0:00:11]} 10. Nxe4 {[%emt 0:01:11]} Nxe4 {[%emt 0:00:05]} 11. Bxe4 {[%emt 0:00:12]} Qxd1+ {[%emt 0:00:06]} 12. Kxd1 {[%emt 0:00:03]} Bd7 {[%emt 0:00:05]} 13. Be3 {[%emt 0:06:08]} f5 {[%emt 0:00:40]} 14. Bf3 {[%emt 0:00:44]} e5 {[%emt 0:15:35]} 15. Kc1 {[%emt 0:11:20]} Rc8 {[%emt 0:01:08]} 16. Re1 {[%emt 0:05:13]} Kf7 {[%emt 0:17:38]} 17. b3 {[%emt 0:02:42]} f4 {[%emt 0:13:23]} 18. Bd5+ {[%emt 0:11:01]} Kf6 {[%emt 0:04:04]} 19. Bc5 {[%emt 0:07:24]} Bf5 {[%emt 0:07:03]} 20. Bd6 {[%emt 0:16:14]} Rhd8 {[%emt 0:12:09]} 21. Bxc6 {[%emt 0:00:05]} Rxd6 {[%emt 0:00:39]} 22. Be4 {[%emt 0:00:05]} Rcd8 {[%emt 0:08:53]} 23. Bxf5 {[%emt 0:06:07]} Kxf5 {[%emt 0:00:04]} 24. Re2 {[%emt 0:02:21]} Rd1+ {[%emt 0:04:31]} 25. Kb2 {[%emt 0:00:03]} Rxa1 {[%emt 0:08:24]} 26. Kxa1 {[%emt 0:00:02]} Rd1+ {[%emt 0:00:04]} 27. Kb2 {[%emt 0:00:09]} Rh1 {[%emt 0:00:22]} 28. f3 {[%emt 0:03:06]} Rxh2 {[%emt 0:00:09]} 29. c4 {[%emt 0:01:29]} h5 {[%emt 0:00:12]} 30. c5 {[%emt 0:10:23]} g5 {[%emt 0:02:29]} 31. Kc3 {[%emt 0:03:00]} g4 {[%emt 0:02:56]} 32. fxg4+ {[%emt 0:00:23]} hxg4 {[%emt 0:00:04]} 33. Kd3 {[%emt 0:00:05]} g3 {[%emt 0:00:37]} 34. b4 {[%emt 0:04:13]} f3 {[%emt 0:00:28]} 35. Re3 {[%emt 0:00:03]} e4+ {[%emt 0:01:17]} 36. Kd4 {[%emt 0:01:28]} f2 {[%emt 0:00:23]} 0-1